lending/lending_fUSD_20241212
["ID","MTS","AMOUNT","RATE_DAILY","PERIOD"]
[345098229,1734015039578,-500.0,0.00019863,2]
[345098230,1734015039587,-500.0,0.00019863,2]
[345098231,1734015039597,-500.0,0.00019863,2]
[345098232,1734015039608,-500.0,0.00019863,2]
[345098233,1734015039617,-500.0,0.00019863,2]
[345098234,1734015039627,-500.0,0.00019863,2]
[345098235,1734015039636,-500.0,0.00019863,2]
[345098236,1734015039645,-500.0,0.00019863,2]
[345098237,1734015039654,-500.0,0.00019863,2]
[345098238,1734015039663,-500.0,0.00019863,2]
[345098239,1734015039673,-500.0,0.00019863,2]
[345098240,1734015039682,-500.0,0.00019863,2]
[345098241,1734015039692,-500.0,0.00019863,2]
[345098242,1734015039702,-500.0,0.00019863,2]
[345098243,1734015039711,-500.0,0.00019863,2]
[345098244,1734015039720,-500.0,0.00019863,2]
[345098245,1734015039729,-500.0,0.00019863,2]
[345098246,1734015039739,-500.0,0.00019863,2]
[345098247,1734015039752,-500.0,0.00019863,2]
[345098248,1734015039761,-500.0,0.00019863,2]
[345098249,1734015039770,-500.0,0.00019863,2]
[345098250,1734015039779,-500.0,0.00019863,2]
[345098251,1734015039789,-500.0,0.00019863,2]
[345098252,1734015039799,-500.0,0.00019863,2]
[345098253,1734015039809,-500.0,0.00019863,2]
[345098254,1734015039818,-500.0,0.00019863,2]
[345098255,1734015039828,-500.0,0.00019863,2]
[345098256,1734015039839,-500.0,0.00019863,2]
[345098257,1734015039849,-500.0,0.00019863,2]
[345098258,1734015039859,-500.0,0.00019863,2]
[345098259,1734015039869,-500.0,0.00019863,2]
[345098260,1734015039878,-500.0,0.00019863,2]
[345098261,1734015039888,-500.0,0.00019863,2]
[345098262,1734015039897,-500.0,0.00019863,2]
[345098263,1734015039907,-500.0,0.00019863,2]
[345098264,1734015039916,-500.0,0.00019863,2]
[345098265,1734015039925,-500.0,0.00019863,2]
[345098266,1734015039934,-500.0,0.00019863,2]
[345098267,1734015039943,-500.0,0.00019863,2]
[345098268,1734015039952,-500.0,0.00019863,2]
[345098269,1734015039962,-500.0,0.00019863,2]
[345098270,1734015039972,-500.0,0.00019863,2]
[345098271,1734015039981,-500.0,0.00019863,2]
[345098272,1734015039991,-500.0,0.00019863,2]
[345098273,1734015040001,-500.0,0.00019863,2]
[345098274,1734015040011,-500.0,0.00019863,2]
[345098275,1734015040020,-500.0,0.00019863,2]
[345098276,1734015040030,-252846.98731285,0.00019866,2]
[345098278,1734015040411,-6865.75023366,0.00019866,2]
[345098279,1734015040443,-26813.0,0.00019866,2]
[345098280,1734015040454,-11823.2715978,0.00019866,2]
[345098281,1734015040465,-3838.99881092,0.00019866,2]
[345098282,1734015040617,-500.0,0.00019199,2]
[345098283,1734015040628,-618.9576479,0.00019473,2]
[345098284,1734015040638,-292.90240579,0.00019725,2]
[345098285,1734015040648,-12832.65753973,0.00019866,2]
[345098286,1734015040659,-500.0,0.00019873,2]
[345098287,1734015040668,-2888.0,0.00019879,2]
[345098288,1734015040678,-773.0,0.0001988,2]
[345098289,1734015040687,-449690.98437443,0.0001988,2]
[345098290,1734015040698,-364.4140497,0.0001988,2]
[345098291,1734015040709,-807.04624,0.0001988,2]
[345098292,1734015040720,-23772.13095731,0.0001988,2]
[345098293,1734015040731,-7897.62823865,0.0001988,2]
[345098294,1734015040743,-6339.12949283,0.0001988,2]
[345098295,1734015040758,-361.436,0.00017347,2]
[345098296,1734015040767,-1890.244001,0.0001988,2]
[345098297,1734015040805,-5065.5,0.0001988,2]
[345098298,1734015040817,-516.6859465,0.0001988,2]
[345098299,1734015040829,-809.66838156,0.0001988,2]
[345098310,1734015046183,-552.0,0.0001988,2]
[345098311,1734015046192,-12177.40413709,0.0001988,2]
[345098312,1734015046204,-14185.29329018,0.0001988,2]
[345098313,1734015046215,-65125.38426186,0.0001988,2]
[345098314,1734015046227,-20218.12360002,0.0001988,2]
[345098315,1734015046294,-412.77501,0.0001988,2]
[345098316,1734015046306,-772.09998948,0.0001988,2]
[345098317,1734015046318,-22443.98599106,0.0001988,2]
[345098318,1734015046411,-118676.3799999,0.0001988,2]
[345098319,1734015046423,-4105.86033568,0.0001988,2]
[345098320,1734015046436,-623.97577661,0.0001988,2]
[345098321,1734015046448,-1746.22350737,0.0001988,2]
[345098322,1734015046537,-1330.21098662,0.0001988,2]
[345098323,1734015046549,-4892.9,0.0001988,2]
[345098324,1734015046560,-5642.4,0.0001988,2]
[345098411,1734015094303,-1000.0,0.00021917,120]
[345098412,1734015094339,-1000.0,0.00021917,120]
[345098413,1734015094373,-163.661011,0.00021917,120]
[345098414,1734015094413,-1000.0,0.00022,120]
[345098416,1734015125418,1001.1672986,7e-05,2]
[345098417,1734015355394,36.338989,0.00022,120]
[345098418,1734015367082,2000.0,0.00017992,120]
[345098424,1734015891154,450.0,0.00013,2]
[345098425,1734016035119,-198.08,0.00013565,2]
[345098426,1734016035141,-153.39,0.00013699,2]
[345098427,1734016035162,-500.0,0.00015,2]
[345098428,1734016035183,-155.37,0.00015863,2]
[345098429,1734016035205,-250.0,0.00015863,2]
[345098430,1734016035234,-887.59,0.00015863,2]
[345098431,1734016035256,-175.13,0.00015951,2]
[345098432,1734016035277,-717.84,0.00015968,2]
[345098433,1734016035299,-919.69905212,0.00016353,2]
[345098434,1734016035320,-919.69905212,0.00016355,2]
[345098435,1734016035340,-919.69905212,0.00016365,2]
[345098436,1734016035362,-919.69905212,0.00016383,2]
[345098437,1734016035384,-919.69905212,0.00016393,2]
[345098438,1734016035407,-919.69905212,0.00016397,2]
[345098439,1734016035429,-150.0,0.000165,2]
[345098440,1734016035450,-175.13,0.00016541,2]
[345098441,1734016035471,-550.0,0.00017,2]
[345098442,1734016035498,-500.0,0.00017019,2]
[345098443,1734016035522,-200.0,0.00017072,2]
[345098444,1734016035542,-175.13,0.00017132,2]
[345098445,1734016035563,-765.72,0.0001724,30]
[345098446,1734016035583,-2005.0,0.00017347,2]
[345098447,1734016035606,-556.79,0.00017422,2]
[345098448,1734016035626,-299.99,0.00017427,4]
[345098449,1734016035647,-556.79,0.00017427,2]
[345098450,1734016035670,-556.79,0.00017431,2]
[345098451,1734016035690,-556.79,0.00017436,2]
[345098452,1734016035710,-556.79,0.00017441,2]
[345098453,1734016035739,-556.79,0.00017445,2]
[345098454,1734016035759,-556.79,0.0001745,2]
[345098455,1734016035780,-556.79,0.00017454,2]
[345098456,1734016035800,-250.0,0.00017455,2]
[345098457,1734016035824,-556.79,0.00017459,2]
[345098458,1734016035844,-510.0,0.00017459,2]
[345098459,1734016035865,-556.79,0.00017463,2]
[345098460,1734016035885,-556.79,0.00017468,2]
[345098461,1734016035909,-556.79,0.00017473,2]
[345098462,1734016035929,-556.79,0.00017477,2]
[345098463,1734016035950,-931.38,0.00017477,2]
[345098464,1734016035970,-9999.99,0.00017477,2]
[345098465,1734016035997,-556.79,0.00017482,2]
[345098466,1734016036017,-556.79,0.00017486,2]
[345098467,1734016036037,-556.79,0.00017491,2]
[345098468,1734016036057,-556.79,0.00017495,2]
[345098469,1734016036078,-556.79,0.000175,2]
[345098470,1734016036098,-556.79,0.00017505,2]
[345098471,1734016036118,-556.79,0.00017509,2]
[345098472,1734016036139,-924.47,0.00017521,2]
[345098473,1734016036159,-1600.0,0.00017534,2]
[345098474,1734016036179,-200.0,0.00017536,2]
[345098475,1734016036386,-1000.0,0.00017549,2]
[345098476,1734016036409,-163.09,0.00017607,2]
[345098477,1734016036431,-621.31316185,0.00017676,2]
[345098478,1734016036453,-800.0,0.00017677,2]
[345098479,1734016036474,-748.14236602,0.00017677,2]
[345098480,1734016036498,-150.0,0.00017677,2]
[345098481,1734016036517,-4955.62432252,0.00017677,2]
[345098482,1734016036538,-370.73,0.00017691,2]
[345098483,1734016036559,-175.13,0.00017722,2]
[345098484,1734016036579,-150.0,0.00017748,2]
[345098485,1734016036599,-1500.0,0.00017754,2]
[345098486,1734016036620,-1691.45,0.00017788,2]
[345098487,1734016036642,-887.59,0.00017846,2]
[345098488,1734016036662,-2789.4755954,0.000179,2]
[345098489,1734016036681,-1852.42,0.00017955,2]
[345098490,1734016036702,-2384.78,0.00017964,2]
[345098491,1734016036722,-1600.0,0.00018183,2]
[345098492,1734016036749,-717.84,0.00018232,2]
[345098493,1734016036769,-175.13,0.00018312,2]
[345098494,1734016036789,-200.0,0.00018324,2]
[345098495,1734016036810,-155.37,0.00018507,2]
[345098496,1734016036836,-1803.49247274,0.00018613,3]
[345098497,1734016036857,-1262.87,0.00018629,2]
[345098498,1734016036878,-1596.901,0.00018657,2]
[345098499,1734016036900,-177.369,0.00018657,2]
[345098500,1734016036922,-23900.0,0.00018713,2]
[345098501,1734016036944,-152.0,0.00018824,3]
[345098502,1734016036966,-1600.0,0.00018832,2]
[345098503,1734016036991,-300.0,0.00018864,2]
[345098504,1734016037013,-2991.7119,0.0001897,2]
[345098505,1734016037035,-397.392,0.00019,2]
[345098506,1734016037057,-8514.50558446,0.00019,2]
[345098507,1734016037078,-600.0,0.00019,2]
[345098508,1734016037099,-2314.0,0.00019018,2]
[345098509,1734016037119,-500.0,0.00019078,2]
[345098510,1734016037138,-218.4622,0.00019099,2]
[345098511,1734016037158,-310.4247,0.00019099,2]
[345098512,1734016037179,-6769.928,0.00019099,2]
[345098513,1734016037199,-758.4833,0.00019099,2]
[345098514,1734016037219,-748.3725,0.00019099,2]
[345098515,1734016037245,-264.5917,0.00019099,2]
[345098516,1734016037265,-2576.5567,0.00019099,2]
[345098517,1734016037286,-152.68768893,0.00019099,2]
[345098518,1734016037306,-500.0,0.00019178,2]
[345098519,1734016037325,-1080.47,0.00019178,2]
[345098520,1734016037345,-550.87201408,0.00019178,2]
[345098521,1734016037365,-500.0,0.00019178,2]
[345098522,1734016037385,-500.0,0.00019178,2]
[345098523,1734016037404,-500.0,0.00019178,2]
[345098524,1734016037424,-500.0,0.00019178,2]
[345098525,1734016037445,-686.17439872,0.00019178,2]
[345098526,1734016037465,-500.0,0.00019178,2]
[345098527,1734016037490,-500.0,0.00019199,2]
[345098528,1734016037510,-993.21,0.00019199,2]
[345098529,1734016037530,-531.84,0.00019199,2]
[345098530,1734016037550,-500.0,0.00019199,2]
[345098531,1734016037570,-1516.8,0.00019199,2]
[345098532,1734016037590,-500.0,0.00019199,2]
[345098533,1734016037611,-500.0,0.00019199,2]
[345098534,1734016037633,-500.0,0.00019199,2]
[345098535,1734016037654,-500.0,0.00019199,2]
[345098536,1734016037674,-500.0,0.00019199,2]
[345098537,1734016037694,-500.0,0.00019199,2]
[345098538,1734016037715,-959.81,0.00019199,2]
[345098539,1734016037742,-500.0,0.00019199,2]
[345098540,1734016037762,-500.0,0.00019199,2]
[345098541,1734016037782,-500.0,0.00019199,2]
[345098542,1734016037803,-848.69,0.00019199,2]
[345098543,1734016037826,-500.0,0.00019199,2]
[345098544,1734016037848,-500.0,0.00019199,2]
[345098545,1734016037870,-565.29055087,0.00019199,2]
[345098546,1734016037891,-628.21,0.00019199,2]
[345098547,1734016037912,-755.36,0.00019199,2]
[345098548,1734016037932,-500.0,0.00019199,2]
[345098549,1734016037952,-500.0,0.00019199,2]
[345098550,1734016037972,-500.0,0.00019199,2]
[345098551,1734016037998,-500.0,0.00019199,2]
[345098552,1734016038018,-504.51689323,0.00019199,2]
[345098553,1734016038039,-500.0,0.00019199,2]
[345098554,1734016038061,-500.0,0.00019199,2]
[345098555,1734016038082,-761.11,0.00019199,2]
[345098556,1734016038104,-500.0,0.00019199,2]
[345098557,1734016038125,-500.0,0.00019199,2]
[345098558,1734016038145,-500.0,0.00019199,2]
[345098559,1734016038167,-500.0,0.00019199,2]
[345098560,1734016038189,-500.0,0.00019199,2]
[345098561,1734016038211,-500.0,0.00019199,2]
[345098562,1734016038236,-515.74,0.00019199,2]
[345098563,1734016038256,-500.0,0.00019199,2]
[345098564,1734016038277,-500.0,0.00019199,2]
[345098565,1734016038299,-500.0,0.00019199,2]
[345098566,1734016038319,-500.0,0.00019199,2]
[345098567,1734016038340,-500.0,0.00019199,2]
[345098568,1734016038361,-500.0,0.00019199,2]
[345098569,1734016038381,-500.0,0.00019199,2]
[345098570,1734016038403,-500.0,0.00019199,2]
[345098571,1734016038424,-500.0,0.00019199,2]
[345098572,1734016038446,-500.0,0.00019199,2]
[345098573,1734016038467,-654.66,0.00019199,2]
[345098574,1734016038492,-500.0,0.00019199,2]
[345098575,1734016038513,-500.0,0.00019199,2]
[345098576,1734016038534,-16.82809456,0.00019199,2]
[345098577,1734016038594,-483.17190544,0.00019199,2]
[345098578,1734016038616,-500.0,0.00019199,2]
[345098579,1734016038637,-578.0,0.00019199,2]
[345098580,1734016038657,-500.0,0.00019199,2]
[345098581,1734016038678,-500.0,0.00019199,2]
[345098582,1734016038699,-500.0,0.00019199,2]
[345098583,1734016038720,-500.0,0.00019199,2]
[345098584,1734016038748,-500.0,0.00019199,2]
[345098585,1734016038769,-500.0,0.00019199,2]
[345098586,1734016038790,-500.0,0.00019199,2]
[345098587,1734016038810,-500.0,0.00019199,2]
[345098588,1734016038832,-500.0,0.00019199,2]
[345098589,1734016038853,-500.0,0.00019199,2]
[345098590,1734016038874,-1263.84,0.00019199,2]
[345098591,1734016038894,-500.0,0.00019199,2]
[345098592,1734016038915,-500.0,0.00019199,2]
[345098593,1734016038935,-500.0,0.00019199,2]
[345098594,1734016038955,-500.0,0.00019199,2]
[345098595,1734016038975,-643.59968264,0.00019199,2]
[345098596,1734016038999,-1144.26,0.00019199,2]
[345098597,1734016039019,-993.94,0.00019199,2]
[345098598,1734016039039,-311.78481043,0.00019199,2]
[345098599,1734016039059,-500.0,0.00019199,2]
[345098600,1734016039079,-500.0,0.00019199,2]
[345098601,1734016039099,-478.05281048,0.00019199,2]
[345098602,1734016039119,-500.0,0.00019199,2]
[345098603,1734016039140,-500.0,0.00019199,2]
[345098604,1734016039160,-500.0,0.00019199,2]
[345098605,1734016039181,-500.0,0.00019199,2]
[345098606,1734016039201,-500.0,0.00019199,2]
[345098607,1734016039223,-500.0,0.00019199,2]
[345098608,1734016039247,-500.0,0.00019199,2]
[345098609,1734016039268,-500.0,0.00019199,2]
[345098610,1734016039289,-500.0,0.00019199,2]
[345098611,1734016039311,-500.0,0.00019199,2]
[345098612,1734016039335,-1587.83,0.000192,31]
[345098613,1734016039359,-1587.83,0.000192,31]
[345098614,1734016039383,-1587.83,0.000192,31]
[345098615,1734016039407,-1587.83,0.000192,31]
[345098616,1734016039430,-1587.83,0.000192,31]
[345098617,1734016039454,-1587.83,0.000192,31]
[345098618,1734016039479,-1587.83,0.000192,31]
[345098619,1734016039505,-1587.83,0.000192,31]
[345098620,1734016039533,-1587.83,0.000192,31]
[345098621,1734016039556,-1587.83,0.000192,31]
[345098622,1734016039580,-1587.83,0.000192,31]
[345098623,1734016039604,-1587.83,0.000192,31]
[345098624,1734016039628,-1587.83,0.000192,31]
[345098625,1734016039653,-1587.83,0.000192,31]
[345098626,1734016039677,-1587.83,0.000192,31]
[345098627,1734016039702,-1587.83,0.000192,31]
[345098628,1734016039722,-297.0,0.000192,7]
[345098629,1734016039746,-1000.0,0.00019298,2]
[345098630,1734016039766,-2500.0,0.00019298,2]
[345098631,1734016039786,-1803.49247275,0.00019352,3]
[345098632,1734016039807,-298.1919,0.00019352,2]
[345098633,1734016039831,-62724.19901602,0.00019398,10]
[345098634,1734016039852,-500.0,0.00019399,2]
[345098635,1734016039874,-500.0,0.00019399,2]
[345098636,1734016039894,-500.0,0.00019399,2]
[345098637,1734016039915,-500.0,0.00019399,2]
[345098638,1734016039935,-562.0096,0.000194,2]
[345098639,1734016039956,-34211.9129,0.000194,2]
[345098640,1734016039976,-2665.2504,0.000194,2]
[345098641,1734016040004,-400.0,0.000194,7]
[345098642,1734016040024,-500.0,0.00019452,2]
[345098643,1734016040045,-1080.47,0.00019452,2]
[345098644,1734016040066,-500.0,0.00019452,2]
[345098645,1734016040086,-500.0,0.00019452,2]
[345098646,1734016040107,-500.0,0.00019452,2]
[345098647,1734016040128,-500.0,0.00019452,2]
[345098648,1734016040148,-500.0,0.00019452,2]
[345098649,1734016040171,-500.0,0.00019473,2]
[345098650,1734016040193,-500.0,0.00019473,2]
[345098651,1734016040399,-993.21,0.00019473,2]
[345098652,1734016040419,-531.84,0.00019473,2]
[345098653,1734016040439,-500.0,0.00019473,2]
[345098654,1734016040459,-1516.8,0.00019473,2]
[345098655,1734016040481,-500.0,0.00019473,2]
[345098656,1734016040502,-500.0,0.00019473,2]
[345098657,1734016040522,-500.0,0.00019473,2]
[345098658,1734016040543,-500.0,0.00019473,2]
[345098659,1734016040563,-500.0,0.00019473,2]
[345098660,1734016040584,-959.81,0.00019473,2]
[345098661,1734016040606,-500.0,0.00019473,2]
[345098662,1734016040630,-500.0,0.00019473,2]
[345098663,1734016040651,-500.0,0.00019473,2]
[345098664,1734016040671,-848.69,0.00019473,2]
[345098665,1734016040692,-500.0,0.00019473,2]
[345098666,1734016040713,-500.0,0.00019473,2]
[345098667,1734016040736,-628.21,0.00019473,2]
[345098668,1734016040757,-755.36,0.00019473,2]
[345098669,1734016040777,-500.0,0.00019473,2]
[345098670,1734016040799,-500.0,0.00019473,2]
[345098671,1734016040825,-500.0,0.00019473,2]
[345098672,1734016040846,-500.0,0.00019473,2]
[345098673,1734016040869,-500.0,0.00019473,2]
[345098674,1734016040891,-500.0,0.00019473,2]
[345098675,1734016040912,-761.11,0.00019473,2]
[345098676,1734016040933,-500.0,0.00019473,2]
[345098677,1734016040953,-500.0,0.00019473,2]
[345098678,1734016040974,-624.83215167,0.00019473,2]
[345098679,1734016041000,-500.0,0.00019473,2]
[345098680,1734016041021,-500.0,0.00019473,2]
[345098681,1734016041041,-562.65395961,0.00019473,2]
[345098682,1734016041062,-515.74,0.00019473,2]
[345098683,1734016041082,-500.0,0.00019473,2]
[345098684,1734016041103,-500.0,0.00019473,2]
[345098685,1734016041124,-500.0,0.00019473,2]
[345098686,1734016041144,-500.0,0.00019473,2]
[345098687,1734016041166,-500.0,0.00019473,2]
[345098688,1734016041187,-500.0,0.00019473,2]
[345098689,1734016041208,-500.0,0.00019473,2]
[345098690,1734016041228,-500.0,0.00019473,2]
[345098691,1734016041252,-500.0,0.00019473,2]
[345098692,1734016041273,-500.0,0.00019473,2]
[345098693,1734016041294,-654.66,0.00019473,2]
[345098694,1734016041315,-500.0,0.00019473,2]
[345098695,1734016041336,-500.0,0.00019473,2]
[345098696,1734016041356,-500.0,0.00019473,2]
[345098697,1734016041377,-500.0,0.00019473,2]
[345098698,1734016041398,-578.0,0.00019473,2]
[345098699,1734016041420,-500.0,0.00019473,2]
[345098700,1734016041441,-500.0,0.00019473,2]
[345098701,1734016041463,-500.0,0.00019473,2]
[345098702,1734016041485,-500.0,0.00019473,2]
[345098703,1734016041507,-474.46897046,0.00019473,2]
[345098704,1734016041528,-500.0,0.00019473,2]
[345098705,1734016041552,-500.0,0.00019473,2]
[345098706,1734016041573,-526.60132679,0.00019473,2]
[345098707,1734016041599,-500.0,0.00019473,2]
[345098708,1734016041620,-500.0,0.00019473,2]
[345098709,1734016041640,-1263.84,0.00019473,2]
[345098710,1734016041661,-621.41796654,0.00019473,2]
[345098711,1734016041682,-500.0,0.00019473,2]
[345098712,1734016041704,-500.0,0.00019473,2]
[345098713,1734016041726,-500.0,0.00019473,2]
[345098714,1734016041749,-1144.26,0.00019473,2]
[345098715,1734016041771,-993.94,0.00019473,2]
[345098716,1734016041791,-500.0,0.00019473,2]
[345098717,1734016041814,-500.0,0.00019473,2]
[345098718,1734016041836,-500.0,0.00019473,2]
[345098719,1734016041858,-500.0,0.00019473,2]
[345098720,1734016041878,-637.96658584,0.00019473,2]
[345098721,1734016041901,-500.0,0.00019473,2]
[345098722,1734016041923,-500.0,0.00019473,2]
[345098723,1734016041945,-500.0,0.00019473,2]
[345098724,1734016041968,-500.0,0.00019473,2]
[345098725,1734016041994,-500.0,0.00019473,2]
[345098726,1734016042014,-500.0,0.00019473,2]
[345098727,1734016042035,-500.0,0.00019473,2]
[345098728,1734016042056,-1600.0,0.00019481,2]
[345098729,1734016042078,-500.0,0.00019499,2]
[345098730,1734016042106,-500.0,0.00019499,2]
[345098731,1734016042126,-502.20311481,0.00019499,2]
[345098732,1734016042150,-543.9,0.00019499,2]
[345098733,1734016042171,-500.0,0.00019499,2]
[345098734,1734016042192,-500.75865506,0.00019499,2]
[345098735,1734016042212,-500.0,0.00019499,2]
[345098736,1734016042239,-500.0,0.00019499,2]
[345098737,1734016042261,-627.59,0.00019499,2]
[345098738,1734016042282,-561.4397233,0.00019499,2]
[345098739,1734016042302,-213.45012786,0.00019499,2]
[345098740,1734016042322,-500.0,0.00019499,2]
[345098741,1734016042342,-36898.88988422,0.000195,2]
[345098742,1734016047142,-392.38674322,0.00019199,2]
[345098743,1734016047165,-294.16,0.00019399,2]
[345098744,1734016047187,-23537.56706336,0.000195,2]
[345098745,1734016053313,-5255.16,0.00018841,2]
[345098746,1734016053334,-500.0,0.00019499,2]
[345098747,1734016053355,-35320.37225075,0.000195,2]
[345098752,1734016209390,161.6,0.00010137,2]
[345098763,1734016231578,-150.0,0.0001637,2]
[345098764,1734016231589,-551.26254607,0.00019199,2]
[345098765,1734016231633,-439.16745393,0.00019199,2]
[345098766,1734016231642,-500.0,0.00019199,2]
[345098767,1734016231653,-500.0,0.00019199,2]
[345098768,1734016231663,-500.0,0.00019199,2]
[345098769,1734016231673,-500.0,0.00019199,2]
[345098770,1734016231683,-500.0,0.00019199,2]
[345098771,1734016231692,-1353.03,0.000192,31]
[345098772,1734016231702,-1353.03,0.000192,31]
[345098773,1734016231713,-1353.03,0.000192,31]
[345098774,1734016231723,-1353.03,0.000192,31]
[345098775,1734016231732,-1353.03,0.000192,31]
[345098776,1734016231742,-1353.03,0.000192,31]
[345098777,1734016231751,-1353.03,0.000192,31]
[345098778,1734016231764,-1353.03,0.000192,31]
[345098779,1734016231776,-1353.03,0.000192,31]
[345098780,1734016231785,-1353.03,0.000192,31]
[345098781,1734016231794,-1353.03,0.000192,31]
[345098782,1734016231804,-1353.03,0.000192,31]
[345098783,1734016231813,-1353.03,0.000192,31]
[345098784,1734016231823,-1353.03,0.000192,31]
[345098785,1734016231832,-1353.03,0.000192,31]
[345098786,1734016231846,-1353.03,0.000192,31]
[345098787,1734016231855,-414.1893,0.00019298,2]
[345098788,1734016231865,-2500.0,0.00019298,2]
[345098789,1734016231875,-5000.0,0.000193,2]
[345098790,1734016231885,-500.0,0.00019397,2]
[345098791,1734016231898,-500.0,0.00019397,2]
[345098792,1734016231908,-425.44,0.00019397,2]
[345098793,1734016231918,-990.43,0.00019473,2]
[345098794,1734016231927,-500.0,0.00019473,2]
[345098795,1734016231937,-530.88,0.00019473,2]
[345098796,1734016231946,-500.0,0.00019473,2]
[345098797,1734016231956,-500.0,0.00019473,2]
[345098798,1734016231967,-500.0,0.00019473,2]
[345098799,1734016231976,-500.0,0.00019499,2]
[345098800,1734016231986,-219.31450971,0.00019499,2]
[345098801,1734016231996,-910.45,0.00019499,2]
[345098802,1734016232010,-777.96,0.00019499,2]
[345098803,1734016232021,-500.0,0.00019499,2]
[345098804,1734016232033,-500.0,0.00019499,2]
[345098805,1734016232042,-692.42,0.00019499,2]
[345098806,1734016232051,-500.0,0.00019499,2]
[345098807,1734016232061,-16028.76873654,0.000195,2]
[345098808,1734016232268,-349.57893753,0.000195,2]
[345098810,1734016237421,-500.0,0.00019199,2]
[345098811,1734016237430,-500.0,0.00019473,2]
[345098812,1734016237439,-101480.00000003,0.000195,2]
[345098818,1734016239059,-56011.82312757,0.000195,2]
[345098819,1734016239069,-800.0,0.000195,7]
[345098820,1734016239079,-1826.0,0.00019534,2]
[345098821,1734016239089,-65731.04489303,0.000196,2]
[345098822,1734016239098,-1079.05472353,0.000196,2]
[345098823,1734016239108,-1200.0,0.000196,7]
[345098824,1734016239118,-500.0,0.00019671,2]
[345098825,1734016239127,-500.0,0.00019671,2]
[345098826,1734016239137,-484.23556217,0.00019673,2]
[345098827,1734016239147,-24041.00618636,0.0001969,2]
[345098828,1734016239157,-297.0,0.000197,7]
[345098829,1734016239166,-1600.0,0.000197,7]
[345098830,1734016239177,-660.34,0.00019725,2]
[345098831,1734016239186,-500.0,0.00019725,2]
[345098832,1734016239196,-500.0,0.00019726,2]
[345098833,1734016239206,-1826.0,0.00019735,2]
[345098834,1734016239215,-1000.0,0.00019743,2]
[345098835,1734016239225,-1516.8,0.00019747,2]
[345098836,1734016239234,-500.0,0.00019747,2]
[345098837,1734016239245,-500.0,0.00019747,2]
[345098838,1734016239255,-500.0,0.00019747,2]
[345098839,1734016239269,-959.81,0.00019747,2]
[345098840,1734016239279,-500.0,0.00019747,2]
[345098841,1734016239290,-500.0,0.00019747,2]
[345098842,1734016239300,-500.0,0.00019747,2]
[345098844,1734016239310,-500.0,0.00019747,2]
[345098845,1734016239320,-628.21,0.00019747,2]
[345098846,1734016239329,-500.0,0.00019747,2]
[345098848,1734016239339,-500.0,0.00019747,2]
[345098849,1734016239349,-500.0,0.00019747,2]
[345098850,1734016239359,-500.0,0.00019747,2]
[345098851,1734016239369,-472.90358924,0.00019747,2]
[345098852,1734016239379,-500.0,0.00019747,2]
[345098853,1734016239393,-761.11,0.00019747,2]